bitfinex/quotes_SOLUSD_20250527
["timestamp","ask_amount","ask_price","bid_price","bid_amount"]
[1748374301184,21.11771194,178.51,178.49,34.34]
[1748374301394,21.11771194,178.51,178.5,34.34]
[1748374301551,21.11771194,178.51,178.46,30.03771194]
[1748374301748,21.11771194,178.5,178.47,34.34]
[1748374301974,21.11771194,178.5,178.48,34.34]
[1748374302342,5.60255476,178.49,178.46,8.92]
[1748374302843,5.60255476,178.49,178.47,34.34]
[1748374303242,21.11771194,178.52,178.47,55.45771194]
[1748374303868,21.11771194,178.51,178.47,55.45771194]
[1748374304857,21.11771194,178.52,178.47,55.45771194]
[1748374306458,5.60192706,178.51,178.47,55.45771194]
[1748374306651,21.11771194,178.5,178.48,34.34]
[1748374306952,21.11771194,178.5,178.47,34.34]
[1748374307357,19.60674471,178.51,178.47,34.34]
[1748374307554,19.60674471,178.51,178.47,55.45771194]
[1748374308565,19.60674471,178.51,178.47,21.11771194]
[1748374308749,19.60674471,178.51,178.48,34.34]
[1748374310058,40.72445665,178.51,178.48,34.34]
[1748374311142,5.60192706,178.51,178.48,34.34]
[1748374313783,21.11771194,178.49,178.46,8.92]
[1748374313952,21.11771194,178.48,178.43,110.11771194]
[1748374314151,21.11771194,178.47,178.42,21.11771194]
[1748374314346,21.11771194,178.47,178.43,34.36]
[1748374314970,21.11771194,178.47,178.42,21.11771194]
[1748374315168,21.11771194,178.47,178.42,55.47771194]
[1748374315580,19.61223803,178.46,178.42,21.11771194]
[1748374315873,19.61223803,178.46,178.42,55.47771194]
[1748374317973,19.61223803,178.46,178.42,34.36]
[1748374318170,40.72994997,178.46,178.42,34.36]
[1748374319179,40.72994997,178.46,178.41,8.94]
[1748374319180,21.11771194,178.45,178.41,8.94]
[1748374319356,21.11771194,178.45,178.42,34.36]
[1748374320472,5.60412463,178.44,178.41,8.94]
[1748374320661,5.60412463,178.44,178.41,43.3]
[1748374321280,5.60412463,178.44,178.41,8.94]
[1748374321584,5.60412463,178.44,178.41,43.3]
[1748374321979,5.60412463,178.44,178.41,8.94]
[1748374322196,5.60412463,178.44,178.41,43.3]
[1748374322390,5.60412463,178.44,178.42,21.11771194]
[1748374322681,5.60412463,178.44,178.43,21.11771194]
[1748374323855,5.6031826,178.47,178.43,21.11771194]
[1748374326177,5.6031826,178.47,178.41,43.3]
[1748374326395,5.6031826,178.47,178.42,21.11771194]
[1748374326396,40.72885105,178.47,178.42,21.11771194]
[1748374327279,40.72885105,178.47,178.43,21.11771194]
[1748374328169,40.72885105,178.47,178.41,43.3]
[1748374328170,5.6031826,178.47,178.46,21.11771194]
[1748374328696,5.6031826,178.47,178.45,55.47771194]
[1748374329883,5.60255476,178.49,178.45,55.47771194]
[1748374330197,5.60255476,178.49,178.46,21.11771194]
[1748374331567,5.60255476,178.49,178.48,21.11771194]
[1748374332007,14.00613302,178.5,178.48,21.11771194]
[1748374333008,5.60161326,178.52,178.49,55.47771194]
[1748374333191,5.60161326,178.52,178.5,34.36]
[1748374333364,5.60161326,178.52,178.51,21.11771194]
[1748374334083,14.00383409,178.53,178.51,21.11771194]
[1748374334283,5.60067208,178.55,178.51,21.11771194]
[1748374334480,5.60067208,178.55,178.5,34.36]
[1748374334481,5.60067208,178.55,178.52,21.11771194]
[1748374334885,5.60067208,178.55,178.51,21.11771194]
[1748374336068,19.60235228,178.55,178.51,21.11771194]
[1748374339181,5.60067208,178.55,178.54,21.11771194]
[1748374339392,5.60067208,178.55,178.54,55.47771194]
[1748374340607,5.6000448,178.57,178.54,34.36]
[1748374343398,21.11771194,178.55,178.46,26.52684886]
[1748374343688,21.11771194,178.54,178.49,21.11771194]
[1748374345218,19.60454825,178.53,178.5,21.11771194]
[1748374345928,19.60454825,178.53,178.51,34.34]
[1748374346792,19.60454825,178.53,178.49,21.11771194]
[1748374346989,40.72226019,178.53,178.48,21.11771194]
[1748374347299,40.72226019,178.53,178.47,8.92]
[1748374347300,21.11771194,178.52,178.49,34.34]
[1748374348710,40.72226019,178.53,178.49,34.34]
[1748374349215,40.72226019,178.53,178.48,21.11771194]
[1748374349409,40.72226019,178.53,178.49,34.34]
[1748374350920,19.60674471,178.51,178.49,34.34]
[1748374353534,21.11771194,178.53,178.49,34.34]
[1748374354609,5.60161326,178.52,178.49,34.34]
[1748374355014,5.60161326,178.52,178.51,21.11771194]
[1748374355326,5.60067208,178.55,178.51,21.11771194]
[1748374355512,5.60067208,178.55,178.54,21.11771194]
[1748374355744,5.60067208,178.55,178.52,55.45771194]
[1748374356733,19.60174485,178.56,178.52,55.45771194]
[1748374357340,19.60174485,178.56,178.53,21.11771194]
[1748374358410,19.60174485,178.56,178.52,34.34]
[1748374358411,19.60174485,178.56,178.52,55.45771194]
[1748374363142,19.60174485,178.56,178.53,21.11771194]
[1748374364547,27.99603209,178.6,178.53,21.11771194]
[1748374364719,21.11771194,178.58,178.53,21.11771194]
[1748374364919,21.11771194,178.57,178.53,21.11771194]
[1748374365338,21.11771194,178.57,178.52,55.45771194]
[1748374366445,19.60125447,178.56,178.52,55.45771194]
[1748374368747,21.11771194,178.55,178.52,34.34]
[1748374369049,21.11771194,178.55,178.51,34.34]
[1748374370146,21.11771194,178.55,178.5,21.11771194]
[1748374370337,5.60098577,178.54,178.51,34.34]
[1748374371840,21.11771194,178.54,178.51,34.34]
[1748374372042,21.11771194,178.52,178.47,8.92]
[1748374372230,21.11771194,178.5,178.47,43.26]
[1748374372419,21.11771194,178.5,178.47,8.92]
[1748374372639,21.11771194,178.5,178.47,43.26]
[1748374373483,21.11771194,178.49,178.43,18.64964886]
[1748374373626,21.11771194,178.49,178.44,55.45771194]
[1748374374158,19.61004033,178.48,178.45,34.34]
[1748374375345,19.61004033,178.48,178.45,55.45771194]
[1748374375961,19.61004033,178.48,178.45,21.11771194]
[1748374376122,19.61004033,178.48,178.45,55.45771194]
[1748374378337,40.72775227,178.48,178.45,34.34]
[1748374378673,21.11771194,178.46,178.43,34.34]
[1748374378951,21.11771194,178.44,178.38,18.64964886]
[1748374379246,21.11771194,178.43,178.39,34.34]
[1748374379550,21.11771194,178.44,178.39,55.45771194]
[1748374380046,21.11771194,178.41,178.37,6.5035]
[1748374380351,21.11771194,178.47,178.33,15.475]
[1748374380352,5.60569538,178.39,178.33,15.475]
[1748374380526,21.11771194,178.38,178.33,36.59271194]
[1748374380672,21.11771194,178.36,178.33,8.92]
[1748374380862,21.11771194,178.36,178.33,43.26]
[1748374381045,21.11771194,178.36,178.33,34.34]
[1748374381856,21.11771194,178.36,178.31,22.66891194]
[1748374382063,21.11771194,178.36,178.32,34.34]
[1748374383570,5.60695262,178.35,178.32,34.34]
[1748374383880,5.60695262,178.35,178.31,22.66891194]
[1748374384070,5.60695262,178.35,178.32,55.47771194]
[1748374386470,28.02776598,178.4,178.32,55.47771194]
[1748374386833,21.11771194,178.37,178.33,34.36]
[1748374387552,5.60663825,178.36,178.33,34.36]
[1748374387769,26.72435019,178.36,178.33,34.36]
[1748374388144,40.74094583,178.36,178.32,34.36]
[1748374388355,21.11771194,178.34,178.29,27.67271194]
[1748374388645,21.11771194,178.33,178.28,8.92]
[1748374388866,21.11771194,178.33,178.29,34.36]
[1748374389051,21.11771194,178.32,178.29,34.36]
[1748374389785,5.60821042,178.31,178.29,34.36]
[1748374390287,14.01698264,178.36,178.3,21.11771194]
[1748374390446,5.60695262,178.35,178.32,21.11771194]
[1748374390995,5.60695262,178.35,178.34,21.11771194]
[1748374391177,5.60695262,178.35,178.33,55.47771194]
[1748374391466,5.60695262,178.35,178.33,34.36]
[1748374392069,5.60695262,178.35,178.33,55.47771194]
[1748374393973,19.6225892,178.37,178.33,55.47771194]
[1748374395985,5.60632393,178.37,178.36,21.11771194]
[1748374396218,5.60632393,178.37,178.36,55.47771194]
[1748374397556,14.01391955,178.4,178.36,55.47771194]
[1748374397755,14.01391955,178.4,178.37,21.11771194]
[1748374400763,14.01391955,178.4,178.36,34.36]
[1748374400971,21.11771194,178.38,178.36,34.36]
[1748374401180,21.11771194,178.38,178.34,34.36]
[1748374401388,14.01391955,178.4,178.33,8.92]
[1748374401389,21.11771194,178.37,178.33,8.92]
[1748374402064,21.11771194,178.38,178.33,30.03771194]
[1748374402983,14.01391955,178.4,178.33,30.03771194]
[1748374403189,21.11771194,178.38,178.33,30.03771194]
[1748374404604,19.62213376,178.37,178.33,64.39771194]
[1748374408102,40.7398457,178.37,178.33,43.28]
[1748374408600,40.7398457,178.37,178.33,34.36]
[1748374408904,21.11771194,178.36,178.32,53.00964886]
[1748374410104,40.74204611,178.35,178.29,99.5794]
[1748374410274,21.11771194,178.34,178.3,21.11771194]
[1748374410472,21.11771194,178.34,178.3,55.47771194]
[1748374410802,21.11771194,178.34,178.3,53.00964886]
[1748374411014,21.11771194,178.34,178.3,74.1273608]
[1748374411243,21.11771194,178.32,178.29,43.28]
[1748374411706,47.65909727,178.35,178.29,43.28]
[1748374411707,21.11771194,178.33,178.29,8.92]
[1748374411877,47.65909727,178.35,178.29,8.92]
[1748374412074,5.60789591,178.32,178.29,8.92]
[1748374417285,5.60789591,178.32,178.29,43.3]
[1748374418505,26.72560785,178.32,178.29,43.3]
[1748374418804,5.60789591,178.32,178.29,43.3]
[1748374419508,28.0347631,178.35,178.29,64.41771194]
[1748374419680,47.65414164,178.37,178.32,21.11771194]
[1748374419886,68.77185358,178.37,178.32,55.49771194]
[1748374420178,21.11771194,178.36,178.32,55.49771194]
[1748374421097,21.11771194,178.36,178.32,34.38]
[1748374421704,5.60695262,178.35,178.32,55.49771194]
[1748374422796,5.60695262,178.35,178.29,8.92]
[1748374422797,40.74204611,178.35,178.29,8.92]
[1748374423107,40.74204611,178.35,178.3,55.49771194]
[1748374423481,14.01738155,178.35,178.31,18.64964886]
[1748374423697,5.60663825,178.36,178.34,39.7673608]
[1748374423904,5.60663825,178.36,178.35,21.11771194]
[1748374424300,5.60663825,178.36,178.34,74.1473608]
[1748374425006,5.60663825,178.36,178.35,21.11771194]
[1748374425826,5.60663825,178.36,178.35,39.7673608]
[1748374426916,14.01560434,178.38,178.35,39.7673608]
[1748374428736,14.01560434,178.38,178.34,34.38]
[1748374428899,14.01560434,178.38,178.32,1.5062]
[1748374428900,21.11771194,178.37,178.32,55.47771194]
[1748374429258,21.11771194,178.37,178.32,21.11771194]
[1748374429401,21.11771194,178.37,178.32,55.47771194]
[1748374429923,19.62323389,178.36,178.32,55.47771194]
[1748374430238,19.62323389,178.36,178.32,34.36]
[1748374430408,19.62323389,178.36,178.32,21.11771194]
[1748374430616,19.62323389,178.36,178.32,55.47771194]
[1748374435224,45.62323389,178.36,178.32,55.47771194]
[1748374435537,45.62323389,178.36,178.33,21.11771194]
[1748374436034,45.62323389,178.36,178.34,39.7673608]
[1748374437366,45.62323389,178.36,178.35,55.47771194]
[1748374440231,19.62323389,178.36,178.35,34.36]
[1748374442412,14.01659564,178.36,178.35,34.36]
[1748374442943,35.13430758,178.36,178.32,34.36]
[1748374443120,21.11771194,178.35,178.31,34.36]
[1748374444641,21.11771194,178.32,178.24,18.64964886]
[1748374444933,21.11771194,178.29,178.26,18.64964886]
[1748374445140,21.11771194,178.28,178.26,18.64964886]
[1748374445441,21.11771194,178.3,178.26,18.64964886]
[1748374446954,5.60883953,178.29,178.26,18.64964886]
[1748374448049,5.60863414,178.3,178.28,18.64964886]
[1748374448252,5.60863414,178.3,178.28,53.00964886]
[1748374449029,5.60821042,178.31,178.28,53.00964886]
[1748374450230,40.74030372,178.37,178.31,18.64964886]
[1748374450419,21.11771194,178.36,178.32,55.49771194]
[1748374450626,21.11771194,178.36,178.32,34.38]
[1748374451236,5.60695262,178.35,178.32,34.38]
[1748374451623,26.72466456,178.35,178.29,18.64964886]
[1748374451853,26.72466456,178.35,178.31,18.64964886]
[1748374452239,26.72466456,178.35,178.31,39.7673608]
[1748374452639,5.60695262,178.35,178.31,39.7673608]
[1748374453952,26.72466456,178.35,178.31,18.64964886]
[1748374454561,19.62259178,178.37,178.31,39.7673608]
[1748374454768,21.11771194,178.36,178.32,21.11771194]
[1748374455937,21.11771194,178.35,178.31,39.7673608]
[1748374456128,21.11771194,178.35,178.31,18.64964886]
[1748374456337,19.62259178,178.37,178.31,18.64964886]
[1748374456538,21.11771194,178.35,178.31,39.7673608]
[1748374456764,5.60726701,178.34,178.31,39.7673608]
[1748374459041,5.60726701,178.34,178.31,18.64964886]
[1748374459633,5.60726701,178.34,178.31,39.7673608]
[1748374460133,5.60726701,178.34,178.31,18.64964886]
[1748374460852,21.11771194,178.32,178.28,89.0]
[1748374461040,21.11771194,178.31,178.29,34.36]
[1748374461736,21.11771194,178.31,178.27,18.64964886]
[1748374461931,21.11771194,178.31,178.26,30.03771194]
[1748374461932,21.11771194,178.3,178.26,30.03771194]
[1748374462144,21.11771194,178.3,178.27,34.36]
[1748374462500,5.60946878,178.27,178.26,8.92]
[1748374462786,5.60946878,178.27,178.23,89.0]
[1748374462787,26.72718072,178.27,178.23,53.08964886]
[1748374463067,26.72718072,178.27,178.21,8.92]
[1748374463068,21.11771194,178.25,178.21,8.92]
[1748374463367,21.11771194,178.24,178.21,43.36]
[1748374463749,21.11771194,178.25,178.21,8.92]
[1748374463936,21.11771194,178.25,178.21,43.36]
[1748374464667,5.61018999,178.25,178.22,21.11771194]
[1748374464973,5.61018999,178.25,178.21,64.47771194]
[1748374465140,26.0,178.3,178.22,18.64964886]
[1748374465483,21.11771194,178.28,178.24,18.64964886]
[1748374465761,26.72655147,178.29,178.24,21.11771194]
[1748374465931,26.72655147,178.29,178.25,34.48]
[1748374466555,26.72655147,178.29,178.25,55.59771194]
[1748374466787,5.60883953,178.29,178.25,55.59771194]
[1748374467570,26.72560785,178.32,178.27,21.11771194]
[1748374468664,5.60789591,178.32,178.29,21.11771194]
[1748374468857,5.60766411,178.33,178.3,21.11771194]
[1748374469259,26.0,178.38,178.32,21.11771194]
[1748374469582,5.60600964,178.38,178.34,18.64964886]
[1748374469780,26.72372158,178.38,178.34,18.64964886]
[1748374470063,26.72372158,178.38,178.33,55.75771194]
[1748374470443,5.60600964,178.38,178.34,21.11771194]
[1748374471438,5.60600964,178.38,178.33,34.64]
[1748374471779,5.60600964,178.38,178.34,21.11771194]
[1748374472560,40.0146233,178.39,178.33,34.64]
[1748374472765,21.11771194,178.38,178.33,55.75771194]
[1748374473059,21.11771194,178.38,178.33,21.11771194]
[1748374473362,21.11771194,178.38,178.33,55.75771194]
[1748374473862,35.13233524,178.39,178.34,21.11771194]
[1748374474050,21.11771194,178.38,178.33,55.75771194]
[1748374474463,21.11771194,178.39,178.34,21.11771194]
[1748374474773,5.60600964,178.38,178.35,21.11771194]
[1748374475648,5.60569538,178.39,178.35,21.11771194]
[1748374476156,26.72340732,178.39,178.34,21.11771194]
[1748374477845,21.11771194,178.38,178.33,55.75771194]
[1748374479573,5.60632393,178.37,178.33,55.75771194]
[1748374480671,5.60632393,178.37,178.34,21.11771194]
[1748374481051,5.60632393,178.37,178.34,55.71771194]
[1748374482277,5.60600964,178.38,178.34,55.71771194]
[1748374483557,26.72372158,178.38,178.34,34.6]
[1748374483755,26.72372158,178.38,178.33,21.11771194]
[1748374483954,26.72372158,178.38,178.34,34.58]
[1748374484653,26.72372158,178.38,178.33,21.11771194]
[1748374484877,26.72372158,178.38,178.34,34.56]
[1748374486085,26.72372158,178.38,178.34,55.67771194]
[1748374486661,40.73874568,178.38,178.33,21.11771194]
[1748374486974,21.11771194,178.37,178.31,18.64964886]
[1748374487157,21.11771194,178.34,178.3,21.11771194]
[1748374487358,21.11771194,178.34,178.29,81.69771194]
[1748374487557,21.11771194,178.34,178.29,21.11771194]
[1748374487852,21.11771194,178.34,178.29,55.69771194]
[1748374488286,5.60758145,178.33,178.29,55.69771194]
[1748374488457,5.60758145,178.33,178.3,21.11771194]
[1748374490297,19.62653507,178.33,178.29,21.11771194]
[1748374490580,40.74424701,178.33,178.28,39.7673608]
[1748374490885,21.11771194,178.32,178.27,55.73771194]
[1748374491559,21.11771194,178.32,178.26,18.64964886]
[1748374491560,21.11771194,178.31,178.26,18.64964886]
[1748374491762,21.11771194,178.3,178.25,56.21771194]
[1748374491984,21.11771194,178.29,178.25,9.1]
[1748374492476,5.60915413,178.28,178.25,9.1]
[1748374494880,5.60915413,178.28,178.25,30.21771194]
[1748374495487,5.60789591,178.32,178.26,21.11771194]
[1748374495660,26.72560785,178.32,178.27,21.11771194]
[1748374496386,5.60789591,178.32,178.28,21.11771194]
[1748374496987,9.1,178.39,178.31,21.11771194]
[1748374497287,9.1,178.39,178.33,21.11771194]
[1748374497288,21.11771194,178.38,178.33,21.11771194]
[1748374497472,21.11771194,178.37,178.33,21.11771194]
[1748374497985,21.11771194,178.37,178.32,21.11771194]
[1748374498586,14.0150241,178.38,178.29,53.22964886]
[1748374498587,5.60663825,178.36,178.33,21.11771194]
[1748374499779,31.60632393,178.37,178.33,21.11771194]
[1748374500183,31.60632393,178.37,178.34,21.11771194]
[1748374500865,31.60632393,178.37,178.33,21.11771194]
[1748374501164,45.62213376,178.37,178.33,21.11771194]
[1748374501361,21.11771194,178.36,178.31,21.11771194]
[1748374501569,21.11771194,178.35,178.29,18.64964886]
[1748374501789,45.62213376,178.37,178.26,90.5756]
[1748374501790,5.60789591,178.32,178.28,21.11771194]
[1748374501980,5.60789591,178.32,178.28,55.69771194]
[1748374502297,5.60789591,178.32,178.29,21.11771194]
[1748374502680,26.0,178.37,178.31,21.11771194]
[1748374502681,5.60663825,178.36,178.31,21.11771194]
[1748374502973,26.72435019,178.36,178.31,21.11771194]
[1748374503481,40.74094583,178.36,178.31,21.11771194]
[1748374504077,19.62323389,178.36,178.31,21.11771194]
[1748374504327,40.74094583,178.36,178.31,21.11771194]
[1748374506092,19.62323389,178.36,178.32,21.11771194]
[1748374507800,40.74094583,178.36,178.29,18.64964886]
[1748374507973,40.74094583,178.36,178.31,21.11771194]
[1748374508797,21.11771194,178.35,178.31,21.11771194]
[1748374510096,26.0,178.38,178.29,18.64964886]
[1748374510097,21.11771194,178.34,178.29,21.11771194]
[1748374510278,21.11771194,178.34,178.29,34.56]
[1748374510594,21.11771194,178.34,178.29,55.67771194]
[1748374510810,21.11771194,178.33,178.28,144.67771194]
[1748374511094,26.72560785,178.32,178.28,89.0]
[1748374511303,40.74534764,178.32,178.28,110.11771194]
[1748374511488,40.74534764,178.32,178.27,9.04]
[1748374511681,40.74534764,178.32,178.28,21.11771194]
[1748374512377,21.11771194,178.31,178.27,30.15771194]
[1748374512578,21.11771194,178.31,178.27,9.04]
[1748374512786,21.11771194,178.3,178.24,25.16394886]
[1748374512971,1.6518,178.33,178.24,25.16394886]
[1748374512972,40.74865029,178.29,178.24,25.16394886]
[1748374513179,40.74865029,178.29,178.25,34.54]
[1748374513386,19.63093835,178.29,178.25,55.65771194]
[1748374513676,21.11771194,178.28,178.22,125.6775]
[1748374513880,21.11771194,178.28,178.23,55.65771194]
[1748374514158,21.11771194,178.26,178.22,9.04]
[1748374514277,21.11771194,178.26,178.22,43.58]
[1748374514484,21.11771194,178.24,178.22,9.04]
[1748374514682,40.74865029,178.29,178.21,34.54]
[1748374514683,19.63093835,178.29,178.21,55.65771194]
[1748374514986,40.74865029,178.29,178.24,21.11771194]
[1748374515179,19.63093835,178.29,178.25,21.11771194]
[1748374515695,5.60883953,178.29,178.26,21.11771194]
[1748374516080,5.60862869,178.3,178.26,21.11771194]
[1748374516575,5.60862869,178.3,178.25,55.65771194]
[1748374516576,26.72634063,178.3,178.25,55.65771194]
[1748374517411,5.60862869,178.3,178.26,21.11771194]
[1748374517610,26.72560785,178.32,178.27,21.11771194]
[1748374517805,5.60789591,178.32,178.29,21.11771194]
[1748374518325,5.60789591,178.32,178.28,6.5252]
[1748374518326,5.60789591,178.32,178.28,27.64291194]
[1748374519180,5.60789591,178.32,178.28,6.5252]
[1748374519381,26.72560785,178.32,178.28,6.5252]
[1748374519902,26.72560785,178.32,178.25,1.5515]
[1748374519903,21.11771194,178.29,178.25,1.5515]
[1748374520084,21.11771194,178.28,178.25,34.54]
[1748374520281,21.11771194,178.29,178.25,34.54]
[1748374521784,5.60915413,178.28,178.25,55.65771194]
[1748374521984,5.60915413,178.28,178.27,21.11771194]
[1748374522501,5.60915413,178.28,178.25,34.54]
[1748374522694,5.60915413,178.28,178.26,21.11771194]
[1748374524009,5.60883953,178.29,178.26,21.11771194]
[1748374524396,19.63093835,178.29,178.25,34.54]
[1748374524707,40.74865029,178.29,178.25,55.65771194]
[1748374524918,40.74865029,178.29,178.25,21.11771194]
[1748374525086,40.74865029,178.29,178.25,34.54]
[1748374525282,21.11771194,178.28,178.23,104.5652]
[1748374525509,21.11771194,178.28,178.24,34.54]
[1748374526222,5.60946878,178.27,178.24,34.54]
[1748374527415,5.60946878,178.27,178.24,55.65771194]
[1748374528226,21.11771194,178.31,178.26,21.11771194]
[1748374528415,5.60860009,178.3,178.26,21.11771194]
[1748374529617,14.02020585,178.32,178.26,21.11771194]
[1748374529805,5.60758145,178.33,178.28,21.11771194]
[1748374530006,5.60758145,178.33,178.28,34.54]
[1748374530007,26.72529339,178.33,178.28,34.54]
[1748374530324,21.11771194,178.29,178.23,95.5252]
[1748374530510,21.11771194,178.28,178.24,34.58]
[1748374530918,21.11771194,178.3,178.25,21.11771194]
[1748374531528,21.11771194,178.29,178.24,55.69771194]
[1748374532595,5.60915413,178.28,178.24,21.11771194]
[1748374532814,21.11771194,178.27,178.23,41.1052]
[1748374533002,21.11771194,178.27,178.23,6.5252]
[1748374533317,21.11771194,178.27,178.23,41.1052]
[1748374533617,40.74975141,178.28,178.23,62.22291194]
[1748374534810,5.60915413,178.28,178.23,62.22291194]
[1748374535211,5.60915413,178.28,178.24,21.11771194]
[1748374535515,5.60915413,178.28,178.24,55.67771194]
[1748374536517,26.72686607,178.28,178.24,34.56]
[1748374536854,40.74975141,178.28,178.24,34.56]
[1748374537298,40.74975141,178.28,178.23,21.11771194]
[1748374537498,40.74975141,178.28,178.23,55.65771194]
[1748374537997,21.11771194,178.25,178.2,9.06]
[1748374538219,21.11771194,178.24,178.2,43.6]
[1748374538428,19.63203947,178.28,178.2,64.71771194]
[1748374538429,21.11771194,178.25,178.2,64.71771194]
[1748374538916,5.61041292,178.24,178.2,64.71771194]
[1748374539312,40.75415717,178.24,178.2,9.06]
[1748374539515,40.75415717,178.24,178.2,43.6]
[1748374540233,40.75415717,178.24,178.19,55.65771194]
[1748374541719,21.11771194,178.23,178.19,34.54]
[1748374542042,21.11771194,178.2,178.16,9.06]
[1748374542218,21.11771194,178.19,178.16,9.06]
[1748374542839,5.61230216,178.18,178.16,9.06]
[1748374546121,26.7300141,178.18,178.16,9.06]
[1748374546320,26.7300141,178.18,178.14,34.54]
[1748374546521,19.64305757,178.18,178.11,16.9959]
[1748374546725,21.11771194,178.15,178.11,9.06]
[1748374547362,19.64305757,178.18,178.08,18.64964886]
[1748374547674,19.64305757,178.18,178.06,123.9629]
[1748374547675,26.0,178.15,178.03,2.82547596]
[1748374547830,0.14216157,178.14,178.06,21.11771194]
[1748374548141,0.14216157,178.14,178.01,17.2629]
[1748374548355,0.14216157,178.14,178.02,34.94]
[1748374548638,21.11771194,178.12,178.07,21.11771194]
[1748374548937,21.11771194,178.12,178.06,21.11771194]
[1748374549136,19.64746827,178.14,178.06,21.11771194]
[1748374549387,21.11771194,178.11,178.06,21.11771194]
[1748374550720,5.61482313,178.1,178.06,21.11771194]
[1748374550927,21.11771194,178.09,178.04,21.11771194]
[1748374552828,5.61545372,178.08,178.04,21.11771194]
[1748374553431,40.77179998,178.08,178.04,21.11771194]
[1748374553747,40.77179998,178.08,178.02,21.11771194]
[1748374553748,21.11771194,178.07,178.02,21.11771194]
[1748374554318,21.11771194,178.06,178.02,21.11771194]
[1748374554724,5.61639988,178.05,178.02,21.11771194]
[1748374558841,21.11771194,178.04,177.97,1.6285]
[1748374559051,5.61639988,178.05,177.99,21.11771194]
[1748374559229,21.11771194,178.03,177.99,21.11771194]
[1748374559555,21.11771194,178.04,177.99,21.11771194]
[1748374560148,5.61703083,178.03,178.0,21.11771194]
[1748374561569,5.61703083,178.03,177.92,28.97971194]
[1748374561570,47.11771194,178.01,177.92,28.97971194]
[1748374561727,21.11771194,177.97,177.92,28.97971194]
[1748374561937,0.5,178.02,177.95,21.11771194]
[1748374562126,0.5,178.02,177.98,21.11771194]
[1748374562127,5.61766192,178.01,177.98,21.11771194]
[1748374563475,5.61766192,178.01,177.99,21.11771194]
[1748374563839,5.61766192,178.01,178.0,21.11771194]
[1748374564231,19.65960792,178.03,177.99,21.11771194]
[1748374564532,19.65960792,178.03,177.98,21.11771194]
[1748374564733,19.65960792,178.03,177.99,21.11771194]
[1748374565145,40.77731986,178.03,177.99,21.11771194]
[1748374566636,40.77731986,178.03,177.98,21.11771194]
[1748374566854,21.11771194,178.02,177.98,21.11771194]
[1748374567338,5.61766192,178.01,177.98,21.11771194]
[1748374567535,19.66181674,178.01,177.96,35.1]
[1748374567754,40.77952868,178.01,177.96,35.06]
[1748374567969,21.11771194,177.99,177.95,9.3]
[1748374568158,21.11771194,177.99,177.95,65.47771194]
[1748374568366,21.11771194,177.99,177.95,30.41771194]
[1748374568562,40.77952868,178.01,177.96,21.11771194]
[1748374572764,21.11771194,178.0,177.96,21.11771194]
[1748374573068,21.11771194,178.0,177.93,107.64964886]
[1748374573249,21.11771194,178.0,177.95,21.11771194]
[1748374573788,19.66181674,178.01,177.96,21.11771194]
[1748374573789,40.77952868,178.01,177.96,21.11771194]
[1748374574074,21.11771194,178.0,177.96,21.11771194]
[1748374575380,5.61829316,177.99,177.98,21.11771194]
[1748374575548,5.61829316,177.99,177.98,56.17771194]
[1748374576070,40.77731986,178.03,177.98,21.11771194]
[1748374576268,21.11771194,178.02,177.98,35.06]
[1748374576648,21.11771194,178.01,177.97,35.06]
[1748374576857,21.11771194,177.99,177.94,30.41771194]
[1748374577176,21.11771194,177.98,177.94,65.47771194]
[1748374577464,5.61892453,177.97,177.94,65.47771194]
[1748374578153,21.11771194,177.96,177.92,6.2334]
[1748374578567,21.11771194,177.96,177.91,56.17771194]
[1748374578779,21.11771194,177.96,177.91,21.11771194]
[1748374578946,21.11771194,177.96,177.91,56.17771194]
[1748374579147,19.66623587,177.97,177.91,56.17771194]
[1748374579148,40.78394781,177.97,177.92,21.11771194]
[1748374579770,40.78394781,177.97,177.92,56.17771194]
[1748374580470,40.78394781,177.97,177.92,35.06]
[1748374580665,21.11771194,177.96,177.92,35.06]
[1748374581063,40.78394781,177.97,177.92,56.17771194]
[1748374583767,19.66623587,177.97,177.93,21.11771194]
[1748374584163,40.78394781,177.97,177.92,35.06]
[1748374584379,40.78394781,177.97,177.92,56.17771194]
[1748374586148,21.11771194,177.96,177.9,200.0]
[1748374586369,21.11771194,177.93,177.9,200.0]
[1748374586592,45.66623587,177.97,177.9,200.0]
[1748374586784,21.11771194,177.93,177.9,200.0]
[1748374586977,21.11771194,177.94,177.9,200.0]
[1748374587173,45.66623587,177.97,177.9,221.11771194]
[1748374587464,21.11771194,177.94,177.9,200.0]
[1748374588185,73.76085855,177.97,177.9,200.0]